Cogmind - Beta 10.1 @@@ ROGUE MODE // 2020.10.06 @ 17:07:31 Player: Aprion27 Result: Destroyed by S-10 Pest with Light Assault Rifle Performance ------------- Evolutions (2) 1000 Regions Visited (3) 600 Robots Destroyed (26) 130 Value Destroyed (712) 712 Prototype IDs (0) 0 Alien Tech Used (0) 0 Bonus (0) 0 TOTAL SCORE: 2442 Bonus ------- None Cogmind --------- Core Integrity 0/550 Matter 185/300 Energy 99/100 System Corruption 0% Temperature Cool (9) Movement Core (50) Location -8/Materials Parts ------- > --- POWER (2) -------- (None) > --- PROPULSION (3) --- (None) > --- UTILITY (3) ------ Advanced Targeting Computer > --- WEAPON (3) ------- Katana > --- INVENTORY (4) ---- Improved Terrain Scan Processor System Shield Peak State ------------ > --- POWER ------------ Light Nuclear Core > --- PROPULSION ------- Airjet > --- UTILITY ---------- Advanced Targeting Computer > --- WEAPON ----------- Assault Rifle Flak Cannon > --- INVENTORY -------- Improved Terrain Scan Processor System Shield Spread Laser [Rating: 13] Favorites ----------- Power Light Ion Engine Engine Light Ion Engine Power Core Light Nuclear Core Propulsion Light Treads Treads Light Treads Hover Unit Airjet Utility Cooling System Device Cooling System Processor Advanced Targeting Computer Weapon Assault Rifle Energy Gun Medium Laser Ballistic Gun Assault Rifle Ballistic Cannon Flak Cannon Slashing Weapon Katana Build | -11 -10 -9 -8 ------- Run | Scr Mat Mat Mat Slots Evolved 4 | . . 2 2 Power 1 | . . . 1 Propulsion 1 | . . 1 . Utility 1 | . . 1 . Weapon 1 | . . . 1 Parts Attached 20 | 5 5 3 7 Power 3 | 1 1 . 1 Engine 2 | 1 1 . . Core 1 | . . . 1 Reactor . | . . . . Propulsion 3 | 2 . . 1 Treads 2 | 2 . . . Leg . | . . . . Wheel . | . . . . Hover 1 | . . . 1 Flight . | . . . . Utility 3 | . 2 . 1 Device 2 | . 2 . . Storage . | . . . . Processor 1 | . . . 1 Hackware . | . . . . Protection . | . . . . Artifact . | . . . . Weapon 11 | 2 2 3 4 Energy Gun 3 | 1 . 1 1 Energy Cannon . | . . . . Ballistic Gun 6 | 1 2 2 1 Ballistic Cannon 1 | . . . 1 Launcher . | . . . . Special Weapon . | . . . . Impact Weapon . | . . . . Slashing Weapon 1 | . . . 1 Piercing Weapon . | . . . . Special Melee Weapon . | . . . . Unidentified Prototypes . | . . . . Parts Lost 15 | . 4 6 5 Power 3 | . 2 . 1 Propulsion 3 | . 1 1 1 Utility 2 | . . 2 . Weapon 7 | . 1 3 3 Highest Loss Streak 6 | . 2 6 5 Average Slot Usage (%) 64 | . 94 34 28 Engine 5 | . 10 . . Treads 16 | . 27 7 . Hover 1 | . . . 5 Device 17 | . 27 13 . Processor 1 | . . . 6 Energy Gun 2 | . 2 6 . Ballistic Gun 16 | . 24 7 6 Ballistic Cannon 1 | . . . 6 Naked Turns 42 | . . 39 3 Heaviest Build 14 | 7 12 9 14 Greatest Support 40 | 40 40 20 9 Greatest Overweight (x) 4 | 2 . . 4 Average Overweight (x) . | . . . . Largest Inventory Capacity 4 | 4 4 4 4 Average Capacity 4 | 4 4 4 4 Most Carried 3 | . 1 2 3 Average Carried 1 | . . 1 2 Final Capacity 4 | 4 4 4 4 Final Carried 2 | . 1 1 2 Class Distribution -------------------- 100% | Mutant Dominant Class ---------------- Mutant | -10/Materials Mutant | -9/Materials Mutant | -8/Materials Resources | -11 -10 -9 -8 ----------- Run | Scr Mat Mat Mat Matter Collected 631 | 259 246 10 116 Remotely . | . . . . Salvage Created 918 | 94 400 43 381 Parts 57 | 7 23 1 26 Haulers Intercepted 1 | . . . 1 Recyclers Shooed 7 | 1 5 . 1 Parts Field Recycled . | . . . . Retrieved Matter . | . . . . Parts Self-Destructed . | . . . . Prevented . | . . . . Kills | -11 -10 -9 -8 ------- Run | Scr Mat Mat Mat Combat Hostiles Destroyed 19 | . 9 1 9 Melee 2 | . 1 . 1 Guns 11 | . 8 1 2 Cannons 6 | . . . 6 Classes Destroyed 8 | 2 2 . 4 Worker 1 | . . . 1 Tunneler 1 | 1 . . . Hauler 1 | . . . 1 Recycler 4 | 1 3 . . Swarmer 4 | . 4 . . Grunt 12 | . 5 1 6 Duelist 2 | . . . 2 Sentry 1 | . . . 1 Best Kill Streak 8 | 2 4 1 8 Combat Bots Only 6 | . 4 1 6 Max Kills in Single Turn 2 | 1 1 1 2 Gunslinging . | . . . . Exploded . | . . . . Melee 1 | . 1 . 1 Uniques/NPCs Destroyed . | . . . . Combat | -11 -10 -9 -8 -------- Run | Scr Mat Mat Mat Damage Taken 2305 | . 710 594 1001 Core 993 | . 111 329 553 Absorbed by Shields . | . . . . Core Remaining (%) 57 | 100 55 17 . Volleys Fired 79 | 3 41 6 29 Largest 2 | 2 2 2 2 Hottest 109 | 70 73 85 109 Shots Fired 136 | 6 69 8 53 Gun 109 | 6 69 8 26 Cannon 27 | . . . 27 Launcher . | . . . . Special . | . . . . Kinetic 124 | 3 66 7 48 Thermal 12 | 3 3 1 5 Explosive . | . . . . Electromagnetic . | . . . . Robot Hit Streak 13 | 2 9 6 13 Robot Miss Streak 7 | 1 7 3 4 Penetration Max . | . . . . Secondary Targets 2 | . 2 . . Max Gunslinging Chain 1 | . 1 . . Shots Hit Robots 98 | 4 44 5 45 Core Hits 77 | 3 20 7 47 Critical Hits . | . . . . Critical Kills . | . . . . Critical Parts Destroyed . | . . . . Melee Attacks 4 | . . . 4 Impact . | . . . . Slashing 4 | . . . 4 Piercing . | . . . . Sneak Attacks . | . . . . Combat Hostiles . | . . . . Follow-up Attacks . | . . . . Damage Inflicted 1696 | 58 676 92 870 Guns 1057 | 58 669 77 253 Cannons 521 | . . . 521 Explosions . | . . . . Melee 72 | . . . 72 Ramming 46 | . 7 15 24 Kinetic 1427 | 22 643 68 694 Thermal 151 | 36 26 9 80 Explosive . | . . . . Electromagnetic . | . . . . Impact . | . . . . Slashing 72 | . . . 72 Piercing . | . . . . Highest Corruption . | . . . . Average Corruption . | . . . . Corruption Purged . | . . . . Overload Shots . | . . . . Overflow Damage . | . . . . Projectiles . | . . . . Explosions . | . . . . Melee . | . . . . Knockbacks 13 | . . . 13 Impact . | . . . . Kinetic 13 | . . . 13 Secondary . | . . . . Self-Inflicted Damage 16 | . . 5 11 Shots . | . . . . Rammed 16 | . 1 5 10 Targets Rammed 17 | . 2 5 10 Kicked . | . . . . Crushed 1 | . 1 . . Highest Temperature 174 | 18 . 7 174 Average Temperature 51 | 9 . 5 69 Received Heat Transfer 1083 | . 321 267 495 Siege Activations . | . . . . Robots Corrupted . | . . . . Combat Hostiles . | . . . . Parts Fried . | . . . . Impact Corruptions . | . . . . Robots Melted . | . . . . Combat Hostiles . | . . . . Parts Melted . | . . . . Heat Transferred 305 | 111 74 15 105 Parts Sabotaged . | . . . . Parts Stolen . | . . . . Parts Stripped . | . . . . Power Chain Reactions . | . . . . Missiles Intercepted . | . . . . Alert | -11 -10 -9 -8 ------- Run | Scr Mat Mat Mat Peak Influence 272 | 10 200 118 272 Initial 88 | . 6 88 45 Average 103 | 7 112 98 152 Maximum Alert Level 1 | . 1 . 1 Low Security (%) 88 | 100 89 100 67 Level 1 11 | . 10 . 32 Level 2 . | . . . . Level 3 . | . . . . Level 4 . | . . . . Level 5 . | . . . . High Security . | . . . . Max Security . | . . . . Squads Dispatched 3 | . 1 1 1 Investigation 2 | . 1 . 1 Extermination . | . . . . Reinforcement 1 | . . 1 . Assault . | . . . . Garrison . | . . . . Intercept . | . . . . Construction Impeded . | . . . . Haulers Reinforced . | . . . . Stealth | -11 -10 -9 -8 --------- Run | Scr Mat Mat Mat Distress Signals 4 | . 2 1 1 Communications Jammed . | . . . . Distress Signals . | . . . . Times Spotted 41 | . 16 8 17 Peak Tracking Total 7 | . 6 7 6 Tactical Retreats . | . . . . Traps | -11 -10 -9 -8 ------- Run | Scr Mat Mat Mat Traps Triggered 2 | . 1 . 1 Indirectly . | . . . . Trap Hack Attempts . | . . . . Triggered . | . . . . Disarmed . | . . . . Reprogrammed . | . . . . Reused . | . . . . Traps Extracted . | . . . . Installed . | . . . . Triggered . | . . . . Machines | -11 -10 -9 -8 ---------- Run | Scr Mat Mat Mat Machines Disabled . | . . . . Max in Single Turn . | . . . . Machines Sabotaged . | . . . . Garrisons Compromised . | . . . . Overloaded Fab Kills . | . . . . Fab Network Shutdowns . | . . . . Hacking | -11 -10 -9 -8 --------- Run | Scr Mat Mat Mat Machines Accessed 1 | . . 1 . Terminals . | . . . . Fabricators . | . . . . Repair Stations . | . . . . Recycling Units 1 | . . 1 . Scanalyzers . | . . . . Garrison Access . | . . . . Total Hacks 1 | . . 1 . Successful 1 | . . 1 . Failed . | . . . . Catastrophic . | . . . . Database Lockouts . | . . . . Manual . | . . . . Terminals . | . . . . Fabricators . | . . . . Repair Stations . | . . . . Recycling Units 1 | . . 1 . Scanalyzers . | . . . . Garrison Access . | . . . . Terminal Hacks . | . . . . Fabricator Hacks . | . . . . Repair Station Hacks . | . . . . Recycling Unit Hacks 1 | . . 1 . Retrieve Components 1 | . . 1 . Scanalyzer . | . . . . Garrison Access Hacks . | . . . . Unauthorized Hacks . | . . . . Terminals . | . . . . Fabricators . | . . . . Repair Stations . | . . . . Recycling Units . | . . . . Scanalyzers . | . . . . Garrison Access . | . . . . Data Cores Recovered . | . . . . Used . | . . . . Hacking Detections . | . . . . Full Trace Events . | . . . . Feedback Events . | . . . . Feedback Blocked . | . . . . Robot Schematics Acquired . | . . . . Robots Built . | . . . . Matter . | . . . . Time . | . . . . Total Robot Build Rating . | . . . . Part Schematics Acquired . | . . . . Parts Built . | . . . . Matter . | . . . . Time . | . . . . Total Part Build Rating . | . . . . Parts Repaired . | . . . . Time . | . . . . Parts Recycled . | . . . . Recycled Matter . | . . . . Retrieved Matter . | . . . . Retrieved Components 3 | . . 3 . Parts Scanalyzed . | . . . . Part Schematics Acquired . | . . . . Parts Damaged . | . . . . Bothacking | -11 -10 -9 -8 ------------ Run | Scr Mat Mat Mat Used RIF Installer . | . . . . Robots Hacked . | . . . . Non-combat . | . . . . Combat . | . . . . Robot Hacks Applied . | . . . . Relay Couplers Released . | . . . . Robots Rewired . | . . . . Allies Hacked . | . . . . Hacks Repelled . | . . . . Allies | -11 -10 -9 -8 -------- Run | Scr Mat Mat Mat Total Allies . | . . . . Largest Group . | . . . . Highest-Rated Group . | . . . . Highest-Rated Ally . | . . . . Total Orders . | . . . . Ally Attacks . | . . . . Total Damage . | . . . . Kills . | . . . . Allies Corrupted . | . . . . Allies Melted . | . . . . Intel | -11 -10 -9 -8 ------- Run | Scr Mat Mat Mat Robot Analysis Total . | . . . . Derelict Logs Recovered . | . . . . Drone Launches . | . . . . Drone Recoveries . | . . . . Exploration | -11 -10 -9 -8 ------------- Run | Scr Mat Mat Mat Turns Passed 774 | 117 346 138 173 Spaces Moved 421 | 70 139 119 93 Core 115 | 24 . 69 22 Treads 235 | 46 139 50 . Legs . | . . . . Wheels . | . . . . Hover 71 | . . . 71 Flight . | . . . . Fastest Speed 50 | 50 160 50 50 Average Speed 114 | 127 160 96 61 Slowest Speed 250 | 160 160 160 250 Overloaded Moves . | . . . . Propulsion Burnouts . | . . . . Robots Hopped . | . . . . Cave-ins Triggered . | . . . . Exploration Rate (%) 19 | 4 43 21 11 Regions Visited 3 Branch Regions . Pre-discovered Areas . | . . . . Known Exits Taken . | . . . . Unknown Exits Taken 3 | 1 1 1 . Scrap Searched . | . . . . Spaces Dug . | . . . . Terrain Destroyed . | . . . . Melee . | . . . . Projectile . | . . . . AOE . | . . . . Terrain Rammed . | . . . . Walls Destroyed . | . . . . Machines Disabled . | . . . . Actions | -11 -10 -9 -8 --------- Run | Scr Mat Mat Mat Total 560 | 89 191 134 146 Wait 16 | 12 3 . 1 Move 419 | 69 139 118 93 Hop . | . . . . Pick Up 3 | . 1 . 2 Fast Attach 16 | 5 4 1 6 Attach 4 | . 1 2 1 Detach 3 | . 1 2 . Swap . | . . . . Drop . | . . . . Fire 79 | 3 41 6 29 Melee 4 | . . . 4 Ram 14 | . . 4 10 Kick . | . . . . Crush 2 | . 1 1 . Escape Stasis . | . . . . Rewire . | . . . . Trap . | . . . . Miscellaneous . | . . . . Route ------- -11/Scrapyard -10/Materials (discovered 2 exits: *Mat / [*Min]) -9/Materials -8/Materials History --------- Turn | Location | Event 5 | -11/Scrapyard | Discovered new exit (range 12) 118 | -11/Scrapyard | Entered Materials 235 | -10/Materials | Discovered new exit (range 6) 316 | -10/Materials | Build established: Mutant 438 | -10/Materials | Discovered new exit (range 16) 464 | -10/Materials | Entered another Materials area 464 | -9/Materials | Evolved 2 slots: Propulsion x1, Utility x1 567 | -9/Materials | Core integrity fell below 50% 591 | -9/Materials | Core integrity fell below 20% 594 | -9/Materials | Lost 6 parts (1n2u3w) 598 | -9/Materials | Discovered new exit (range 9) 602 | -9/Materials | Entered another Materials area 602 | -8/Materials | Evolved 2 slots: Power x1, Weapon x1 752 | -8/Materials | Core integrity fell below 50% 764 | -8/Materials | Core integrity fell below 20% 775 | -8/Materials | Destroyed by S-10 Pest with Light Assault Rifle Last Messages --------------- 00739_ G-47 Trooper knocked back. 00741_ Lgt. Nuclear Core destroyed. 00742_ L-31 Rogue knocked back. 00743_ Flak Cannon destroyed. 00747_ L-31 Rogue destroyed. 00747_ Spread Laser destroyed. 00749_ Acquired 21 matter. 00750_ Slammed into G-47 Trooper. 00759_ Destabilizing: System interference. 00759_ Adv. Targeting Computer temporarily disabled. 00760_ Slammed into G-47 Trooper. 00760_ K-01 Serf collects debris. 00762_ Acquired Katana. 00762_ K-01 Serf collects debris. 00769_ G-47 Trooper destroyed. 00769_ K-01 Serf collects debris. 00771_ K-01 Serf destroyed. 00771_ C-30 ARC bursts open, deploying its payload. 00771_ S-10 Pest unfolds itself. 00773_ K-01 Serf collects debris. Map ----- +----------------------------------------------------+ | ?????????????????????????????????????????????????? | | ?????????????????????????????????????????????????? | | ?????????????????????????????????????????????????? | | ?????????????????????????????????????????????????? | | ??????????????????????? ???????????????????????? | | ??????????????????????? #??????????????????????? | | ??????????????????????# #??????????????????????? | | ??????????????????????# +??????????????????????? | | ??????????????????????# #??????????????????????? | | ??????????????????????# #??????????????????????? | | ??????????????????????# #??????????????????????? | | ??????????????????????#% #??????????????????????? | | ???????????????????? ?# #??????????????????????? | | ????????????????? """?#s #??????????????????????? | | ??????????????????"""?+ #######????????????????? | | ??????????????????"""?# k=% ?????????????????? | | ??????????????????? ?# s*%*= ???????????????????? | | ????################+## k! ?????????????????????? | | ????# [ # #gs%#??????????????????????? | | ???##!!! "" # %#=!s#??????????????????????? | | ???#[! ""S # """= =#=%k#??????????????????????? | | ???##!![ "" # """%!%;==*#??????????????????????? | | ????# * # """ !#% #??????????????????????? | | ????# ]# ! # #??????????????????????? | | ????# # ! /!# = #??????????????????????? | | ????# # #!%@#??????????????????????? | | ????#####+#######+##### [u#??????????????????????? | | ####### ##### ##??# w#??????????????????????? | | #??# #??????????????????????? | | #??# ??????????????????????? | | #??# ??????????????????????? | | ####### #### #??# ?????????????????????? | | #?????#######??# #??##### ?????????????????????? | | #??????????????# #??????? ?????????????????????? | | #??????????????# #??????? ????????????????????? | | #??????????????# #??????? ????????????????????? | | #??????????????# #???????? ????????????????????? | | #??????????????# #???????? ???????????????????? | | #??????????????# #???????? ????????????????????? | | ???????????????# #?????????????????????????????? | | ???????????????? #?????????????????????????????? | | ???????????????? #?????????????????????????????? | | ???????????????? #?????????????????????????????? | | ???????????????? ??????????????????????????????? | | ?????????????????????????????????????????????????? | | ?????????????????????????????????????????????????? | | ?????????????????????????????????????????????????? | | ?????????????????????????????????????????????????? | | ?????????????????????????????????????????????????? | | ?????????????????????????????????????????????????? | +----------------------------------------------------+ Best States ------------- Heat Dissipation 72 Energy Generation 14 Energy Capacity 160 Matter Stores 300 Matter Capacity 300 Sight Range 16 Terrain Scan Density 10 Evasion (%) 53 Targeting Accuracy 8 Recoil Reduction 2 Item Schematics ----------------- None Robot Schematics ------------------ None Fabricated ------------ Nothing Alien Tech Used ----------------- None Achievements -------------- None Challenges ------------ None Game ------ Seed BattleCloakMatrix Manual? 0 Play Time 00:15:03 Cumulative 72.1 hours Start 2020.10.06 @ 16:50:54 End 2020.10.06 @ 17:07:31 Sessions 1 Manual Loads 0 Difficulty Rogue Special Mode None Game No. 47 Rogue 47 Adventurer 0 Explorer 0 Win Type - Total 1 Types 1/0/0/0/0/0/0/0/0 Lore% 24 Gallery% 47 Achievement% 33 Wizard Run 0 Options --------- ASCII 0 Keyboard 1 Movement Numpad Keybinds 0 Fullscreen 1 Font 36/Smallcaps Map View 76x50 Tactical HUD 1 Map Filters NONE Filters NONE Steam 1 RUN: 25087c5b-fbae-46ae-a6f4-7c597b74325f